Cogmind - Beta 9.6 @@@ ROGUE MODE // 2020.08.16 @ 18:02:06 Player: Rusllan Result: Destroyed by G-34 Mercenary with Small Laser Performance ------------- Evolutions (0) 0 Regions Visited (1) 200 Robots Destroyed (49) 245 Value Destroyed (960) 960 Prototype IDs (3) 60 Alien Tech Used (0) 0 Bonus (8) 8 TOTAL SCORE: 1473 Bonus ------- High Alert Combat Kills 8 Cogmind --------- Core Integrity 0/250 Matter 236/500 Energy 278/280 System Corruption 4% Temperature Cool (137) Movement Walking (150) Ox1 Location -10/Materials Parts ------- > --- POWER (1) -------- Heavy Ion Engine > --- PROPULSION (2) --- Aluminum Leg > --- UTILITY (2) ------ Small Storage Unit High-capacity Matter Pod > --- WEAPON (2) ------- EM Pulse Gun > --- INVENTORY (6) ---- Heavy Ion Engine Light Nuclear Core Aluminum Leg Improved Heat Sink Large Battery (300) Targeting Computer Peak State ------------ > --- POWER ------------ Heavy Ion Engine > --- PROPULSION ------- Light Treads Light Treads > --- UTILITY ---------- Small Storage Unit High-capacity Matter Pod > --- WEAPON ----------- Assault Rifle Grenade Launcher > --- INVENTORY -------- Heavy Ion Engine Heavy Ion Engine Heavy Ion Engine Large Battery Targeting Computer Assault Rifle [Rating: 10] Favorites ----------- Power Heavy Ion Engine Engine Heavy Ion Engine Propulsion Light Treads Treads Light Treads Leg Aluminum Leg Utility Small Storage Unit Storage Small Storage Unit Weapon Assault Rifle Energy Gun EM Pulse Gun Ballistic Gun Assault Rifle Launcher Grenade Launcher Build | -11 -10 ------- Run | Scr Mat Slots Evolved . | . . Power . | . . Propulsion . | . . Utility . | . . Weapon . | . . Parts Attached 24 | 7 17 Power 5 | 1 4 Engine 5 | 1 4 Core . | . . Reactor . | . . Propulsion 7 | 2 5 Treads 5 | 2 3 Leg 2 | . 2 Wheel . | . . Hover . | . . Flight . | . . Utility 3 | 2 1 Device . | . . Storage 3 | 2 1 Processor . | . . Hackware . | . . Protection . | . . Artifact . | . . Weapon 9 | 2 7 Energy Gun 5 | . 5 Energy Cannon . | . . Ballistic Gun 3 | 2 1 Ballistic Cannon . | . . Launcher 1 | . 1 Special Weapon . | . . Impact Weapon . | . . Slashing Weapon . | . . Piercing Weapon . | . . Special Melee Weapon . | . . Unidentified Prototypes 1 | . 1 Parts Lost 9 | . 9 Power 2 | . 2 Propulsion 1 | . 1 Utility . | . . Weapon 6 | . 6 Highest Loss Streak 3 | . 3 Average Slot Usage (%) 86 | . 86 Engine 12 | . 12 Treads 17 | . 17 Leg 3 | . 3 Storage 28 | . 28 Energy Gun 5 | . 5 Ballistic Gun 10 | . 10 Launcher 6 | . 6 Naked Turns . | . . Heaviest Build 21 | 17 21 Greatest Support 40 | 40 40 Greatest Overweight (x) 5 | . 5 Average Overweight (x) . | . . Largest Inventory Capacity 8 | 8 8 Average Capacity 6 | 7 6 Most Carried 6 | 3 6 Average Carried 3 | . 4 Final Capacity 8 | 8 6 Final Carried 6 | . 6 Class Distribution -------------------- 100% | Mutant Dominant Class ---------------- Mutant | -10/Materials Resources | -11 -10 ----------- Run | Scr Mat Matter Collected 1101 | 396 705 Remotely . | . . Salvage Created 1272 | 308 964 Parts 105 | 44 61 Haulers Intercepted 2 | . 2 Recyclers Shooed . | . . Parts Field Recycled . | . . Retrieved Matter . | . . Parts Self-Destructed . | . . Prevented . | . . Kills | -11 -10 ------- Run | Scr Mat Combat Hostiles Destroyed 22 | . 22 Guns 13 | . 13 AOE 9 | . 9 Classes Destroyed 9 | 3 6 Worker 8 | 4 4 Builder 1 | . 1 Tunneler 9 | 8 1 Hauler 2 | . 2 Recycler 3 | 1 2 Operator 1 | . 1 Watcher 3 | . 3 Swarmer 3 | . 3 Grunt 19 | . 19 Best Kill Streak 14 | 2 14 Combat Bots Only 5 | . 5 Max Kills in Single Turn 2 | 1 2 Gunslinging . | . . Exploded 2 | . 2 Melee . | . . Uniques/NPCs Destroyed . | . . Combat | -11 -10 -------- Run | Scr Mat Damage Taken 1408 | . 1408 Core 255 | . 255 Absorbed by Shields . | . . Core Remaining (%) 100 | 100 . Volleys Fired 128 | 25 103 Largest 2 | 2 2 Hottest 80 | 40 80 Shots Fired 200 | 50 150 Gun 165 | 50 115 Cannon . | . . Launcher 35 | . 35 Special . | . . Kinetic 124 | 50 74 Thermal 12 | . 12 Explosive 35 | . 35 Electromagnetic 29 | . 29 Robot Hit Streak 18 | 17 18 Robot Miss Streak 5 | 2 5 Penetration Max . | . . Secondary Targets 1 | . 1 Max Gunslinging Chain 1 | . 1 Shots Hit Robots 130 | 33 97 Core Hits 76 | 14 62 Critical Hits 3 | . 3 Critical Kills 2 | . 2 Critical Parts Destroyed 1 | . 1 Melee Attacks . | . . Impact . | . . Slashing . | . . Piercing . | . . Sneak Attacks . | . . Combat Hostiles . | . . Follow-up Attacks . | . . Damage Inflicted 2877 | 388 2489 Guns 1169 | 388 781 Cannons . | . . Explosions 1708 | . 1708 Melee . | . . Ramming . | . . Kinetic 844 | 388 456 Thermal 102 | . 102 Explosive 1672 | . 1672 Electromagnetic 259 | . 259 Impact . | . . Slashing . | . . Piercing . | . . Highest Corruption 4 | . 4 Average Corruption 4 | . 4 Corruption Purged . | . . Effects 23 | . 23 Message Errors 6 | . 6 Matter Fused 7 | . 7 Heat Flow Errors 1 | . 1 Parts Rejected 2 | . 2 Data Loss (minor) 4 | . 4 Targeting Errors 3 | . 3 Overload Shots . | . . Overflow Damage 124 | . 124 Projectiles . | . . Explosions 124 | . 124 Melee . | . . Knockbacks . | . . Impact . | . . Kinetic . | . . Secondary . | . . Self-Inflicted Damage 141 | . 141 Shots 5 | . 5 Rammed . | . . Targets Rammed . | . . Kicked . | . . Crushed . | . . Highest Temperature 237 | . 237 Average Temperature 51 | . 51 Received Heat Transfer 480 | . 480 Siege Activations . | . . Robots Corrupted . | . . Combat Hostiles . | . . Parts Fried . | . . Impact Corruptions . | . . Robots Melted . | . . Combat Hostiles . | . . Parts Melted . | . . Heat Transferred 150 | . 150 Parts Sabotaged . | . . Parts Stolen . | . . Parts Stripped . | . . Power Chain Reactions 1 | . 1 Missiles Intercepted . | . . Alert | -11 -10 ------- Run | Scr Mat Peak Influence 408 | 45 408 Average Influence 161 | 16 234 Maximum Alert Level 2 | . 2 Low Security (%) 55 | 100 33 Level 1 43 | . 65 Level 2 . | . . Level 3 . | . . Level 4 . | . . Level 5 . | . . High Security . | . . Max Security . | . . Squads Dispatched 5 | . 5 Investigation 3 | . 3 Extermination . | . . Reinforcement 2 | . 2 Assault . | . . Garrison . | . . Intercept . | . . Construction Impeded . | . . Haulers Reinforced . | . . Stealth | -11 -10 --------- Run | Scr Mat Distress Signals 2 | . 2 Communications Jammed . | . . Distress Signals . | . . Times Spotted 38 | . 38 Peak Tracking Total 4 | . 4 Tactical Retreats 1 | . 1 Traps | -11 -10 ------- Run | Scr Mat Traps Triggered 1 | . 1 Indirectly . | . . Trap Hack Attempts . | . . Triggered . | . . Disarmed . | . . Reprogrammed . | . . Reused . | . . Traps Extracted . | . . Installed . | . . Triggered . | . . Machines | -11 -10 ---------- Run | Scr Mat Machines Disabled 7 | . 7 Max in Single Turn 2 | . 2 Machines Sabotaged . | . . Garrisons Compromised . | . . Overloaded Fab Kills . | . . Fab Network Shutdowns . | . . Hacking | -11 -10 --------- Run | Scr Mat Machines Accessed 6 | . 6 Terminals 3 | . 3 Fabricators . | . . Repair Stations 1 | . 1 Recycling Units 2 | . 2 Scanalyzers . | . . Garrison Access . | . . Total Hacks 22 | . 22 Successful 11 | . 11 Failed 11 | . 11 Catastrophic 2 | . 2 Database Lockouts . | . . Manual . | . . Terminals 10 | . 10 Fabricators . | . . Repair Stations 5 | . 5 Recycling Units 7 | . 7 Scanalyzers . | . . Garrison Access . | . . Terminal Hacks 6 | . 6 Record 1 | . 1 Prototype ID Bank 1 | . 1 Terminal Index 1 | . 1 Dispatch Records 1 | . 1 Zone Layout 2 | . 2 Fabricator Hacks . | . . Repair Station Hacks 2 | . 2 Scan Component 1 | . 1 Repair 1 | . 1 Recycling Unit Hacks 3 | . 3 Retrieve Matter 2 | . 2 Retrieve Components 1 | . 1 Scanalyzer . | . . Garrison Access Hacks . | . . Unauthorized Hacks . | . . Terminals . | . . Fabricators . | . . Repair Stations . | . . Recycling Units . | . . Scanalyzers . | . . Garrison Access . | . . Data Cores Recovered 1 | . 1 Used . | . . Hacking Detections 5 | . 5 Full Trace Events 5 | . 5 Feedback Events . | . . Feedback Blocked . | . . Robot Schematics Acquired . | . . Robots Built . | . . Matter . | . . Time . | . . Total Robot Build Rating . | . . Part Schematics Acquired . | . . Parts Built . | . . Matter . | . . Time . | . . Total Part Build Rating . | . . Parts Repaired 1 | . 1 Time 26 | . 26 Parts Recycled . | . . Recycled Matter . | . . Retrieved Matter . | . . Retrieved Components . | . . Parts Scanalyzed . | . . Part Schematics Acquired . | . . Parts Damaged . | . . Bothacking | -11 -10 ------------ Run | Scr Mat Used RIF Installer . | . . Robots Hacked . | . . Non-combat . | . . Combat . | . . Robot Hacks Applied . | . . Relay Couplers Released . | . . Robots Rewired . | . . Allies Hacked . | . . Hacks Repelled . | . . Allies | -11 -10 -------- Run | Scr Mat Total Allies . | . . Largest Group . | . . Highest-Rated Group . | . . Highest-Rated Ally . | . . Total Orders . | . . Ally Attacks . | . . Total Damage . | . . Kills . | . . Allies Corrupted . | . . Allies Melted . | . . Intel | -11 -10 ------- Run | Scr Mat Robot Analysis Total . | . . Derelict Logs Recovered . | . . Drone Launches . | . . Drone Recoveries . | . . Exploration | -11 -10 ------------- Run | Scr Mat Turns Passed 1803 | 600 1203 Spaces Moved 906 | 325 581 Core 9 | 7 2 Treads 789 | 318 471 Legs 108 | . 108 Wheels . | . . Hover . | . . Flight . | . . Fastest Speed 50 | 50 120 Average Speed 154 | 157 153 Slowest Speed 300 | 160 300 Overloaded Moves . | . . Propulsion Burnouts . | . . Robots Hopped . | . . Cave-ins Triggered 1 | . 1 Exploration Rate (%) 46 | 13 79 Regions Visited 1 Branch Regions . Pre-discovered Areas . | . . Known Exits Taken . | . . Unknown Exits Taken 1 | 1 . Scrap Searched . | . . Spaces Dug . | . . Terrain Destroyed 230 | . 230 Melee . | . . Projectile . | . . AOE 230 | . 230 Actions | -11 -10 --------- Run | Scr Mat Total 1110 | 363 747 Wait 16 | . 16 Move 905 | 324 581 Hop . | . . Pick Up 29 | 7 22 Fast Attach 2 | . 2 Attach 17 | 7 10 Detach . | . . Swap 5 | . 5 Drop 8 | . 8 Fire 128 | 25 103 Melee . | . . Ram . | . . Kick . | . . Crush . | . . Escape Stasis . | . . Rewire . | . . Trap . | . . Miscellaneous . | . . Route ------- -11/Scrapyard -10/Materials (discovered 3 exits: [*Mat] / [*Min x2]) History --------- Turn | Location | Event 31 | -11/Scrapyard | Discovered new exit (range 15) 601 | -11/Scrapyard | Entered Materials 602 | -10/Materials | Build established: Mutant 780 | -10/Materials | Crushed by falling debris 912 | -10/Materials | Discovered new exit (range 7) 1054 | -10/Materials | Core integrity fell below 50% 1202 | -10/Materials | Discovered new exit (range 9) 1335 | -10/Materials | Repaired Lgt. Treads 1351 | -10/Materials | Core integrity fell below 20% 1445 | -10/Materials | Discovered new exit (range 12) 1623 | -10/Materials | Lost 3 parts (1p2w) 1804 | -10/Materials | Destroyed by G-34 Mercenary with Small Laser Last Messages --------------- Acquired 4 matter. Triggered Alarm Trap. An alarm sounds. ALERT: Alarm triggered, dispatching investigation squad. Electrolysis Chamber disabled. Chain reaction triggered in Lgt. Ion Engine. W-16 Scout destroyed. K-01 Serf collects debris. Acquired 17 matter. K-01 Serf collects debris. Acquired EM Pulse Gun. System corrupted: Matter fused (-6). U-05 Engineer builds a Wall. G-34 Mercenary destroyed. U-05 Engineer builds a Wall. EM Pulse Gun destroyed. G-34 Mercenary destroyed. System corrupted: Aluminum Leg rejected. EM Pulse Gun destroyed. Acquired EM Pulse Gun. Map ----- +----------------------------------------------------+ | ??????????????????????????###########???????????## | | ??????????????????????????# #??????????##" | | ?????????????????????###### !!! #?????????##"| | | ?????????????????????# # ! #?????????#"" | | ?????????????????????# # !! ########### | | #####?????????######## # "## # | | #"""##????????# # + T## # | | "|||"##???????# """ # # "## # | | " ""#???????# """ # # ## ## | | #???????# """ # #######+#### ### | | < #???????# # ###### #??# #?# | | #???????# """ # #??# #?# | | #???????# """ + #### #?# | | ##???????# """ # """ """ + ### | | # ##??####### # """ """ ###########+## | | # ##### # """ # """ """ ######### | | + # """ # ## + | | # # """ # ##! """ # | | # # # ## """ # ## | | ######### ##?##### ## """ # #### | | #?######## ######### ##### ## + #??? | | #?# # ## ##### # # #??? | | #?# ### +###### ###### ##?? | | #?#"" [""" |#?## =*#%= # ## #?? | | #?#""" """ #?## *t/%! # !## #?? | | ??#"" !#""" #?## @ g# # / #?? | | ??# # #?# ! # %/ ## #?? | | ??### ####+######!= # # ## #?? | | ????### # #??#^^^^^## # # ####+##### | | ????#|| ## #### ######## # # # | | ????#|| ## ### # # # "" # | | ????#!! ####### # # """ " | | ????#!! # # """ " | | ????# ####### # # !" | | ????# ###+###### ## # # # """ # | | ????###### #### # ######## ####### "R # | | ????????## #### """ ### # # # """ # | | ########## #?? """ #?# """ # # # + | | #?? """ #?# """ + + ########## | | """ """ #?# #?# """ # % # ###??????# | | """ "Y" #?# !??# # # # #??????# | | """ #?# || ??# / = # # ## ##??????? | | ! # ##?# || #?#########+## #???????? | | * # #??# #?????# #####???????? | | #####+#### #??# " #????## ##??????????? | | #??# T ###### #??????????? | | #### "?# ##?????????? | | ""##?? ??# T #?????????? | | """ T"#???????# "" # # #?????????? | | """ ""#???????# # # #?????????? | +----------------------------------------------------+ Best States ------------- Heat Dissipation 25 Energy Generation 14 Energy Capacity 280 Matter Stores 300 Matter Capacity 500 Sight Range 16 Terrain Scan Density 10 Evasion (%) 40 Recoil Reduction 2 Item Schematics ----------------- None Robot Schematics ------------------ None Fabricated ------------ Nothing Alien Tech Used ----------------- None Achievements -------------- Oops Challenges ------------ None Game ------ Seed BombForceCharger Manual? 0 Play Time 00:19:02 Cumulative 6.5 hours Start 2020.08.16 @ 17:45:08 End 2020.08.16 @ 18:02:06 Sessions 1 Manual Loads 0 Difficulty Rogue Special Mode None Game No. 9 Rogue 9 Adventurer 0 Explorer 0 Win Type - Total 0 Types 0/0/0/0/0/0/0 Lore% 4 Gallery% 9 Achievement% 12 Wizard Run 0 Options --------- ASCII 0 Keyboard 0 Movement Mouse Keybinds 0 Fullscreen 1 Font 18/SmallcapsGlow Map View 76x50 Tactical HUD 0 Map Filters NONE Filters NONE Steam 1 RUN: 98265a8a-ba6b-498a-9904-0faaaacdc4cc